Department Family,Entity,Date,Expense Type,Expense Area,Supplier,Transaction Number,AP Amount
Department of Health,St. Helens&Knowsley Hospitals NHS Trust,31/12/2019,Blood Products,HAEM + BLOOD TRANSFUSION,NHS BLOOD & TRANSPLANT,32815468,"93,470.54"
Department of Health,St. Helens&Knowsley Hospitals NHS Trust,31/12/2019,CNST contributions,CLINICAL NEGLIGENCE,10003266,NHSLACONT-T213,"1,134,053.00 "
Department of Health,St. Helens&Knowsley Hospitals NHS Trust,31/12/2019,Computer Hardware Purch,HIS programme costs - shared services,HP INC UK LTD,32586159,"25,067.40"
Department of Health,St. Helens&Knowsley Hospitals NHS Trust,31/12/2019,Computer Hardware Purch,Trust Recharges,HP INC UK LTD,32712426,"32,737.44"
Department of Health,St. Helens&Knowsley Hospitals NHS Trust,31/12/2019,Computer Maintenance,TRUST IT SYSTEMS,INSIGHT DIRECT (UK) LTD,32752056,"29,144.48"
Department of Health,St. Helens&Knowsley Hospitals NHS Trust,31/12/2019,Continence Products,COMMUNITY CONTINENCE SERVICE,ESSITY UK LTD,32815395,"26,390.44"
Department of Health,St. Helens&Knowsley Hospitals NHS Trust,31/12/2019,Data Lines,HIS programme costs - shared services,VIRGIN MEDIA BUSINESS LTD,32702553,"75,252.72"
Department of Health,St. Helens&Knowsley Hospitals NHS Trust,31/12/2019,Equip Maint Contracts,RADIOGRAPHY WHISTON,GE MEDICAL SYSTEMS LTD,32865997,"38,306.57"
Department of Health,St. Helens&Knowsley Hospitals NHS Trust,31/12/2019,Coding Review,FINANCE DIRECTORATE HQ,IQVIA TECHNOLOGY SERVICES LTD,32895574,"37,125.00"
Department of Health,St. Helens&Knowsley Hospitals NHS Trust,31/12/2019,Independent Sector,LLP,ST HELENS ORTHOPAEDICS,32764718,"390,462.00"
Department of Health,St. Helens&Knowsley Hospitals NHS Trust,31/12/2019,Interpreting services,A + E MEDICAL STAFF WH,PRESTIGE NETWORK LTD,32863525,129.96
Department of Health,St. Helens&Knowsley Hospitals NHS Trust,31/12/2019,Interpreting services,ALLEN DAY UNIT,PRESTIGE NETWORK LTD,32863525,53.28
Department of Health,St. Helens&Knowsley Hospitals NHS Trust,31/12/2019,Interpreting services,AUDIOLOGY,PRESTIGE NETWORK LTD,32863525,101.88
Department of Health,St. Helens&Knowsley Hospitals NHS Trust,31/12/2019,Interpreting services,B + P DRESSINGS CLINIC,PRESTIGE NETWORK LTD,32863525,217.80
Department of Health,St. Helens&Knowsley Hospitals NHS Trust,31/12/2019,Interpreting services,B + P HOLBROOK UNIT,PRESTIGE NETWORK LTD,32863525,295.44
Department of Health,St. Helens&Knowsley Hospitals NHS Trust,31/12/2019,Interpreting services,B + P MEDICAL STAFF,PRESTIGE NETWORK LTD,32863525,"1,650.42"
Department of Health,St. Helens&Knowsley Hospitals NHS Trust,31/12/2019,Interpreting services,B + P PROSTHETIC SERVICE,PRESTIGE NETWORK LTD,32863525,89.88
Department of Health,St. Helens&Knowsley Hospitals NHS Trust,31/12/2019,Interpreting services,CANCER NURSE SPEC SCG,PRESTIGE NETWORK LTD,32863525,237.00
Department of Health,St. Helens&Knowsley Hospitals NHS Trust,31/12/2019,Interpreting services,CANCER SVS CO-ORDINATION,PRESTIGE NETWORK LTD,32863525,138.24
Department of Health,St. Helens&Knowsley Hospitals NHS Trust,31/12/2019,Interpreting services,CARDIO-RESPIRATORY (ECG),PRESTIGE NETWORK LTD,32863525,147.48
Department of Health,St. Helens&Knowsley Hospitals NHS Trust,31/12/2019,Interpreting services,CARDIOLOGY NURSING,PRESTIGE NETWORK LTD,32863525,"1,033.73"
Department of Health,St. Helens&Knowsley Hospitals NHS Trust,31/12/2019,Interpreting services,Cancer Core Staff and Non-Pay,PRESTIGE NETWORK LTD,32863525,126.00
Department of Health,St. Helens&Knowsley Hospitals NHS Trust,31/12/2019,Interpreting services,DELIVERY SUITE,PRESTIGE NETWORK LTD,32863525,231.48
Department of Health,St. Helens&Knowsley Hospitals NHS Trust,31/12/2019,Interpreting services,DERMATOLOGY,PRESTIGE NETWORK LTD,32863525,340.38
Department of Health,St. Helens&Knowsley Hospitals NHS Trust,31/12/2019,Interpreting services,DIABETES NURSING,PRESTIGE NETWORK LTD,32863525,551.94
Department of Health,St. Helens&Knowsley Hospitals NHS Trust,31/12/2019,Interpreting services,ENT MEDICAL STAFF,PRESTIGE NETWORK LTD,32863525,408.24
Department of Health,St. Helens&Knowsley Hospitals NHS Trust,31/12/2019,Interpreting services,FETO MAT ASSESSMENT UNIT,PRESTIGE NETWORK LTD,32863525,"1,497.48"
Department of Health,St. Helens&Knowsley Hospitals NHS Trust,31/12/2019,Interpreting services,GASTROLOGY SNR MEDICAL,PRESTIGE NETWORK LTD,32863525,618.06
Department of Health,St. Helens&Knowsley Hospitals NHS Trust,31/12/2019,Interpreting services,GEN MED ENDOSCOPY H2,PRESTIGE NETWORK LTD,32863525,775.31
Department of Health,St. Helens&Knowsley Hospitals NHS Trust,31/12/2019,Interpreting services,GEN MEDICINE MEDICAL STF,PRESTIGE NETWORK LTD,32863525,92.28
Department of Health,St. Helens&Knowsley Hospitals NHS Trust,31/12/2019,Interpreting services,GENERAL SURGERY MEDICAL,PRESTIGE NETWORK LTD,32863525,715.25
Department of Health,St. Helens&Knowsley Hospitals NHS Trust,31/12/2019,Interpreting services,GENERAL SURGERY PRE OP,PRESTIGE NETWORK LTD,32863525,318.72
Department of Health,St. Helens&Knowsley Hospitals NHS Trust,31/12/2019,Interpreting services,GYNAE OUTPATIEN ST HELENS,PRESTIGE NETWORK LTD,32863525,303.54
Department of Health,St. Helens&Knowsley Hospitals NHS Trust,31/12/2019,Interpreting services,LASER CLINICS,PRESTIGE NETWORK LTD,32863525,206.28
Department of Health,St. Helens&Knowsley Hospitals NHS Trust,31/12/2019,Interpreting services,MARSHALLS CROSS MEDICAL CENTRE,PRESTIGE NETWORK LTD,32863525,134.28
Department of Health,St. Helens&Knowsley Hospitals NHS Trust,31/12/2019,Interpreting services,NEUROPHYSIOLOGY (EEG),PRESTIGE NETWORK LTD,32863525,163.86
Department of Health,St. Helens&Knowsley Hospitals NHS Trust,31/12/2019,Interpreting services,NEUROSURGERY - MEDICAL STAFF,PRESTIGE NETWORK LTD,32863525,81.60
Department of Health,St. Helens&Knowsley Hospitals NHS Trust,31/12/2019,Interpreting services,OBSTETRICS WARD 2E,PRESTIGE NETWORK LTD,32863525,579.12
Department of Health,St. Helens&Knowsley Hospitals NHS Trust,31/12/2019,Interpreting services,OPHTH RENNIE EYE CLINIC,PRESTIGE NETWORK LTD,32863525,"1,348.08"
Department of Health,St. Helens&Knowsley Hospitals NHS Trust,31/12/2019,Interpreting services,OPHTHALMOLOGY MEDICAL,PRESTIGE NETWORK LTD,32863525,505.80
Department of Health,St. Helens&Knowsley Hospitals NHS Trust,31/12/2019,Interpreting services,ORTHODONTICS & ORAL & FACIAL SURGERY,PRESTIGE NETWORK LTD,32863525,365.16
Department of Health,St. Helens&Knowsley Hospitals NHS Trust,31/12/2019,Interpreting services,ORTHOPAEDIC MEDICAL STAFF,PRESTIGE NETWORK LTD,32863525,243.18
Department of Health,St. Helens&Knowsley Hospitals NHS Trust,31/12/2019,Interpreting services,OUTPATIENTS DEPT NEWTON,PRESTIGE NETWORK LTD,32863525,105.60
Department of Health,St. Helens&Knowsley Hospitals NHS Trust,31/12/2019,Interpreting services,OUTPATIENTS WHISTON,PRESTIGE NETWORK LTD,32863525,99.60
Department of Health,St. Helens&Knowsley Hospitals NHS Trust,31/12/2019,Interpreting services,PSDU AT ST HELENS,PRESTIGE NETWORK LTD,32863525,152.22
Department of Health,St. Helens&Knowsley Hospitals NHS Trust,31/12/2019,Interpreting services,RADIOGRAPHY WHISTON,PRESTIGE NETWORK LTD,32863525,"1,772.16"
Department of Health,St. Helens&Knowsley Hospitals NHS Trust,31/12/2019,Interpreting services,RHEUMATOLOGY NURSING OUTPATIENTS,PRESTIGE NETWORK LTD,32863525,310.92
Department of Health,St. Helens&Knowsley Hospitals NHS Trust,31/12/2019,Interpreting services,SAFEGUARDING,PRESTIGE NETWORK LTD,32863525,216.00
Department of Health,St. Helens&Knowsley Hospitals NHS Trust,31/12/2019,Interpreting services,SANDERSON SUITE GENERAL SURGERY,PRESTIGE NETWORK LTD,32863525,856.86
Department of Health,St. Helens&Knowsley Hospitals NHS Trust,31/12/2019,Interpreting services,SEDDON SUITE TRAUMA REHAB UNIT,PRESTIGE NETWORK LTD,32863525,"1,090.26"
Department of Health,St. Helens&Knowsley Hospitals NHS Trust,31/12/2019,Interpreting services,SEXUAL HEALTH CLINIC (GUM),PRESTIGE NETWORK LTD,32863525,393.06
Department of Health,St. Helens&Knowsley Hospitals NHS Trust,31/12/2019,Interpreting services,THERAPY MANAGEMENT & ADMIN.,PRESTIGE NETWORK LTD,32863525,206.88
Department of Health,St. Helens&Knowsley Hospitals NHS Trust,31/12/2019,Interpreting services,UROLOGY MEDICAL STAFF,PRESTIGE NETWORK LTD,32863525,747.60
Department of Health,St. Helens&Knowsley Hospitals NHS Trust,31/12/2019,Interpreting services,WARD 1D CARDIOLOGY,PRESTIGE NETWORK LTD,32863525,353.58
Department of Health,St. Helens&Knowsley Hospitals NHS Trust,31/12/2019,Interpreting services,WARD 3A PLASTICS,PRESTIGE NETWORK LTD,32863525,895.62
Department of Health,St. Helens&Knowsley Hospitals NHS Trust,31/12/2019,Interpreting services,WARD 3E GYNAECOLOGY,PRESTIGE NETWORK LTD,32863525,102.00
Department of Health,St. Helens&Knowsley Hospitals NHS Trust,31/12/2019,Interpreting services,WARD 3F PAEDIATRICS,PRESTIGE NETWORK LTD,32863525,181.68
Department of Health,St. Helens&Knowsley Hospitals NHS Trust,31/12/2019,Interpreting services,WARD 4B GENERAL SURGERY,PRESTIGE NETWORK LTD,32863525,309.48
Department of Health,St. Helens&Knowsley Hospitals NHS Trust,31/12/2019,Interpreting services,WARD 4D BURNS,PRESTIGE NETWORK LTD,32863525,211.92
Department of Health,St. Helens&Knowsley Hospitals NHS Trust,31/12/2019,Interpreting services,Womens OPD,PRESTIGE NETWORK LTD,32863525,"3,768.03"
Department of Health,St. Helens&Knowsley Hospitals NHS Trust,31/12/2019,Laboratory Chemicals,HAEM + BLOOD TRANSFUSION,SYSMEX UK LTD,32754908,"35,657.71"
Department of Health,St. Helens&Knowsley Hospitals NHS Trust,31/12/2019,Laboratory Equipment,MICROBIOLOGY DEPT,CHRYSTAL CONSULTING LTD,32329043,"72,432.28"
Department of Health,St. Helens&Knowsley Hospitals NHS Trust,31/12/2019,Lease Rents,HIS programme costs - shared services,OAKMERE ESTATES (LIVERPOOL) LTD,32670202,"103,500.00"
Department of Health,St. Helens&Knowsley Hospitals NHS Trust,31/12/2019,Lease Rents,INFORMATION DEPARTMENT,OAKMERE ESTATES (LIVERPOOL) LTD,32702579,"29,082.00"
Department of Health,St. Helens&Knowsley Hospitals NHS Trust,31/12/2019,Med & Surg Equip Disp,GEN MED ENDOSCOPY H2,BOSTON SCIENTIFIC LTD,32597742,"32,250.71"
Department of Health,St. Helens&Knowsley Hospitals NHS Trust,31/12/2019,Med & Surg Equip General,GEN MED ENDOSCOPY H2,BOSTON SCIENTIFIC LTD,32849747,"5,230.91"
Department of Health,St. Helens&Knowsley Hospitals NHS Trust,31/12/2019,Med & Surg Equip Leases,CHEMICAL PATHOLOGY DEPT,SIEMENS HEALTHCARE DIAGNOSTICS LTD,32786219,"176,294.90"
Department of Health,St. Helens&Knowsley Hospitals NHS Trust,31/12/2019,Med & Surg Equip Leases,CHEMICAL PATHOLOGY DEPT,SIEMENS HEALTHCARE DIAGNOSTICS LTD,32786220,"176,294.90"
Department of Health,St. Helens&Knowsley Hospitals NHS Trust,31/12/2019,Med & Surg Equip Leases,CHEMICAL PATHOLOGY DEPT,SIEMENS HEALTHCARE DIAGNOSTICS LTD,32786221,"29,382.48"
Department of Health,St. Helens&Knowsley Hospitals NHS Trust,31/12/2019,Med & Surg Equip Leases,CHEMICAL PATHOLOGY DEPT,SIEMENS HEALTHCARE DIAGNOSTICS LTD,32786225,"176,294.90"
Department of Health,St. Helens&Knowsley Hospitals NHS Trust,31/12/2019,Med & Surg Equip Leases,CHEMICAL PATHOLOGY DEPT,SIEMENS HEALTHCARE DIAGNOSTICS LTD,32786226,"176,294.90"
Department of Health,St. Helens&Knowsley Hospitals NHS Trust,31/12/2019,Med & Surg Equip Leases,CHEMICAL PATHOLOGY DEPT,SIEMENS HEALTHCARE DIAGNOSTICS LTD,32786227,"29,382.48"
Department of Health,St. Helens&Knowsley Hospitals NHS Trust,31/12/2019,Med & Surg Maint Contract,Cold Decontamination,IM MED LTD,32833621,"70,265.07"
Department of Health,St. Helens&Knowsley Hospitals NHS Trust,31/12/2019,Med Equip Additions,Balance Sheet,SIGMACON (UK) LTD,32833705,"78,705.00"
Department of Health,St. Helens&Knowsley Hospitals NHS Trust,31/12/2019,Miscellaneous Expenditure,HSDU WHISTON,SYNERGY HEALTH (UK) LTD,32801034,"171,665.80"
Department of Health,St. Helens&Knowsley Hospitals NHS Trust,31/12/2019,Mobile Phones,A + E NURSING WHISTON,VODAFONE LTD,32828787,108.14
Department of Health,St. Helens&Knowsley Hospitals NHS Trust,31/12/2019,Mobile Phones,ACUTE KIDNEY INJURY SERVICE,VODAFONE LTD,32828787,36.00
Department of Health,St. Helens&Knowsley Hospitals NHS Trust,31/12/2019,Mobile Phones,ACUTE MEDICAL UNIT,VODAFONE LTD,32828787,36.00
Department of Health,St. Helens&Knowsley Hospitals NHS Trust,31/12/2019,Mobile Phones,AMU NURSE SPECIALISTS,VODAFONE LTD,32828787,"1,118.80"
Department of Health,St. Helens&Knowsley Hospitals NHS Trust,31/12/2019,Mobile Phones,B + P DRESSINGS CLINIC,VODAFONE LTD,32828787,36.00
Department of Health,St. Helens&Knowsley Hospitals NHS Trust,31/12/2019,Mobile Phones,B + P MEDICAL PHOTOGRAPHY,VODAFONE LTD,32828787,72.00
Department of Health,St. Helens&Knowsley Hospitals NHS Trust,31/12/2019,Mobile Phones,B + P MEDICAL STAFF,VODAFONE LTD,32828787,36.00
Department of Health,St. Helens&Knowsley Hospitals NHS Trust,31/12/2019,Mobile Phones,BED MANAGEMENT,VODAFONE LTD,32828787,189.00
Department of Health,St. Helens&Knowsley Hospitals NHS Trust,31/12/2019,Mobile Phones,BUSINESS RELATIONSHIPS,VODAFONE LTD,32828787,36.00
Department of Health,St. Helens&Knowsley Hospitals NHS Trust,31/12/2019,Mobile Phones,C.O.P.D SERVICE (KPCT),VODAFONE LTD,32828787,9.00
Department of Health,St. Helens&Knowsley Hospitals NHS Trust,31/12/2019,Mobile Phones,C.O.P.D SERVICE (STHPCT),VODAFONE LTD,32828787,135.00
Department of Health,St. Helens&Knowsley Hospitals NHS Trust,31/12/2019,Mobile Phones,CANCER NURSE SPEC MCG,VODAFONE LTD,32828787,72.00
Department of Health,St. Helens&Knowsley Hospitals NHS Trust,31/12/2019,Mobile Phones,CANCER NURSE SPEC SCG,VODAFONE LTD,32828787,91.31
Department of Health,St. Helens&Knowsley Hospitals NHS Trust,31/12/2019,Mobile Phones,CANCER SERVICES - ADMIN,VODAFONE LTD,32828787,36.00
Department of Health,St. Helens&Knowsley Hospitals NHS Trust,31/12/2019,Mobile Phones,CANCER SVS CO-ORDINATION,VODAFONE LTD,32828787,234.02
Department of Health,St. Helens&Knowsley Hospitals NHS Trust,31/12/2019,Mobile Phones,CARDIO-RESPIRATORY (ECG),VODAFONE LTD,32828787,45.00
Department of Health,St. Helens&Knowsley Hospitals NHS Trust,31/12/2019,Mobile Phones,CARDIOLOGY NURSING,VODAFONE LTD,32828787,90.00
Department of Health,St. Helens&Knowsley Hospitals NHS Trust,31/12/2019,Mobile Phones,CARDIOLOGY SNR MEDICAL,VODAFONE LTD,32828787,36.00
Department of Health,St. Helens&Knowsley Hospitals NHS Trust,31/12/2019,Mobile Phones,CARE OF ELDERLY MED STAFF,VODAFONE LTD,32828787,659.57
Department of Health,St. Helens&Knowsley Hospitals NHS Trust,31/12/2019,Mobile Phones,CHAIRMAN'S OFFICE,VODAFONE LTD,32828787,282.30
Department of Health,St. Helens&Knowsley Hospitals NHS Trust,31/12/2019,Mobile Phones,CHIEF EXECUTIVE'S OFFICE,VODAFONE LTD,32828787,299.18
Department of Health,St. Helens&Knowsley Hospitals NHS Trust,31/12/2019,Mobile Phones,CLINICAL PSYCHOLOGY,VODAFONE LTD,32828787,45.00
Department of Health,St. Helens&Knowsley Hospitals NHS Trust,31/12/2019,Mobile Phones,CLINICAL SUPPORT DIV MGMT,VODAFONE LTD,32828787,36.00
Department of Health,St. Helens&Knowsley Hospitals NHS Trust,31/12/2019,Mobile Phones,COE NURSE SPECIALISTS,VODAFONE LTD,32828787,117.00
Department of Health,St. Helens&Knowsley Hospitals NHS Trust,31/12/2019,Mobile Phones,COLD DECONTAMINATION WHISTON,VODAFONE LTD,32828787,81.00
Department of Health,St. Helens&Knowsley Hospitals NHS Trust,31/12/2019,Mobile Phones,COMMUNICATIONS,VODAFONE LTD,32828787,139.36
Department of Health,St. Helens&Knowsley Hospitals NHS Trust,31/12/2019,Mobile Phones,COMMUNITY CONTINENCE SERVICE,VODAFONE LTD,32828787,144.00
Department of Health,St. Helens&Knowsley Hospitals NHS Trust,31/12/2019,Mobile Phones,COMMUNITY FRAILTY SERVICE,VODAFONE LTD,32828787,144.00
Department of Health,St. Helens&Knowsley Hospitals NHS Trust,31/12/2019,Mobile Phones,COMMUNITY MIDWIFERY,VODAFONE LTD,32828787,"1,465.86"
Department of Health,St. Helens&Knowsley Hospitals NHS Trust,31/12/2019,Mobile Phones,COMMUNITY SLA'S,VODAFONE LTD,32828787,296.52
Department of Health,St. Helens&Knowsley Hospitals NHS Trust,31/12/2019,Mobile Phones,Cancer Core Staff and Non-Pay,VODAFONE LTD,32828787,36.00
Department of Health,St. Helens&Knowsley Hospitals NHS Trust,31/12/2019,Mobile Phones,Cold Decontamination,VODAFONE LTD,32828787,36.00
Department of Health,St. Helens&Knowsley Hospitals NHS Trust,31/12/2019,Mobile Phones,DIABETES NURSING,VODAFONE LTD,32828787,72.00
Department of Health,St. Helens&Knowsley Hospitals NHS Trust,31/12/2019,Mobile Phones,DIABETES SNR MEDICAL,VODAFONE LTD,32828787,72.00
Department of Health,St. Helens&Knowsley Hospitals NHS Trust,31/12/2019,Mobile Phones,DIABETES STP,VODAFONE LTD,32828787,432.36
Department of Health,St. Helens&Knowsley Hospitals NHS Trust,31/12/2019,Mobile Phones,EAST MIDLANDS HEE,VODAFONE LTD,32828787,72.00
Department of Health,St. Helens&Knowsley Hospitals NHS Trust,31/12/2019,Mobile Phones,EMERGENCY PLANNING,VODAFONE LTD,32828787,36.38
Department of Health,St. Helens&Knowsley Hospitals NHS Trust,31/12/2019,Mobile Phones,ENT MEDICAL STAFF,VODAFONE LTD,32828787,36.00
Department of Health,St. Helens&Knowsley Hospitals NHS Trust,31/12/2019,Mobile Phones,EPMA,VODAFONE LTD,32828787,108.00
Department of Health,St. Helens&Knowsley Hospitals NHS Trust,31/12/2019,Mobile Phones,ESTATE SURVEY SECTION,VODAFONE LTD,32828787,36.00
Department of Health,St. Helens&Knowsley Hospitals NHS Trust,31/12/2019,Mobile Phones,EXECUTIVE PAYROLL,VODAFONE LTD,32828787,182.34
Department of Health,St. Helens&Knowsley Hospitals NHS Trust,31/12/2019,Mobile Phones,FACILITIES MANAGEMENT,VODAFONE LTD,32828787,189.00
Department of Health,St. Helens&Knowsley Hospitals NHS Trust,31/12/2019,Mobile Phones,FINANCE DIRECTORATE HQ,VODAFONE LTD,32828787,72.00
Department of Health,St. Helens&Knowsley Hospitals NHS Trust,31/12/2019,Mobile Phones,GASTRO UPPER GI FUND,VODAFONE LTD,32828787,36.00
Department of Health,St. Helens&Knowsley Hospitals NHS Trust,31/12/2019,Mobile Phones,GASTROLOGY NURSING,VODAFONE LTD,32828787,296.40
Department of Health,St. Helens&Knowsley Hospitals NHS Trust,31/12/2019,Mobile Phones,GASTROLOGY SNR MEDICAL,VODAFONE LTD,32828787,221.12
Department of Health,St. Helens&Knowsley Hospitals NHS Trust,31/12/2019,Mobile Phones,GEN MEDICINE MEDICAL STF,VODAFONE LTD,32828787,144.00
Department of Health,St. Helens&Knowsley Hospitals NHS Trust,31/12/2019,Mobile Phones,GENERAL SURGERY MEDICAL,VODAFONE LTD,32828787,117.00
Department of Health,St. Helens&Knowsley Hospitals NHS Trust,31/12/2019,Mobile Phones,HAEM + BLOOD TRANSFUSION,VODAFONE LTD,32828787,36.00
Department of Health,St. Helens&Knowsley Hospitals NHS Trust,31/12/2019,Mobile Phones,HAEMATOLOGY MEDICAL,VODAFONE LTD,32828787,108.00
Department of Health,St. Helens&Knowsley Hospitals NHS Trust,31/12/2019,Mobile Phones,HAIRDRESSER ST HELENS,VODAFONE LTD,32828787,36.00
Department of Health,St. Helens&Knowsley Hospitals NHS Trust,31/12/2019,Mobile Phones,HIS programme costs - shared services,VODAFONE LTD,32828787,"1,545.26"
Department of Health,St. Helens&Knowsley Hospitals NHS Trust,31/12/2019,Mobile Phones,HISTOPATHOLOGY/MORTUARY,VODAFONE LTD,32828787,29.62
Department of Health,St. Helens&Knowsley Hospitals NHS Trust,31/12/2019,Mobile Phones,HOSPITAL DISCHARGE TEAM,VODAFONE LTD,32828787,36.00
Department of Health,St. Helens&Knowsley Hospitals NHS Trust,31/12/2019,Mobile Phones,HSDU WHISTON,VODAFONE LTD,32828787,36.00
Department of Health,St. Helens&Knowsley Hospitals NHS Trust,31/12/2019,Mobile Phones,HUMAN RESOURCES - RESOURCING,VODAFONE LTD,32828787,"2,086.09"
Department of Health,St. Helens&Knowsley Hospitals NHS Trust,31/12/2019,Mobile Phones,ICU MEDICAL STAFF WHISTON,VODAFONE LTD,32828787,309.60
Department of Health,St. Helens&Knowsley Hospitals NHS Trust,31/12/2019,Mobile Phones,INFANT FEEDING TEAM,VODAFONE LTD,32828787,144.00
Department of Health,St. Helens&Knowsley Hospitals NHS Trust,31/12/2019,Mobile Phones,INFECTION CONTROL,VODAFONE LTD,32828787,63.00
Department of Health,St. Helens&Knowsley Hospitals NHS Trust,31/12/2019,Mobile Phones,INFORMATION DEPARTMENT,VODAFONE LTD,32828787,124.20
Department of Health,St. Helens&Knowsley Hospitals NHS Trust,31/12/2019,Mobile Phones,LEGAL SERVICES,VODAFONE LTD,32828787,36.00
Department of Health,St. Helens&Knowsley Hospitals NHS Trust,31/12/2019,Mobile Phones,MARSHALLS CROSS MEDICAL CENTRE,VODAFONE LTD,32828787,59.62
Department of Health,St. Helens&Knowsley Hospitals NHS Trust,31/12/2019,Mobile Phones,MATERNITY THEATRES EMERGENCY WEEKDAYS,VODAFONE LTD,32828787,9.00
Department of Health,St. Helens&Knowsley Hospitals NHS Trust,31/12/2019,Mobile Phones,MEDICAL CARE GROUP MGT,VODAFONE LTD,32828787,"1,010.18"
Department of Health,St. Helens&Knowsley Hospitals NHS Trust,31/12/2019,Mobile Phones,MGMT SPECIALIST MIDWIVES,VODAFONE LTD,32828787,468.29
Department of Health,St. Helens&Knowsley Hospitals NHS Trust,31/12/2019,Mobile Phones,MICROBIOLOGY DEPT,VODAFONE LTD,32828787,279.14
Department of Health,St. Helens&Knowsley Hospitals NHS Trust,31/12/2019,Mobile Phones,MICROBIOLOGY MED STAFF,VODAFONE LTD,32828787,72.00
Department of Health,St. Helens&Knowsley Hospitals NHS Trust,31/12/2019,Mobile Phones,NEWTON INTERMEDIATE CARE SERVICE,VODAFONE LTD,32828787,63.00
Department of Health,St. Helens&Knowsley Hospitals NHS Trust,31/12/2019,Mobile Phones,NORTH WEST HEE,VODAFONE LTD,32828787,648.71
Department of Health,St. Helens&Knowsley Hospitals NHS Trust,31/12/2019,Mobile Phones,NURSING ADMINISTRATION,VODAFONE LTD,32828787,529.73
Department of Health,St. Helens&Knowsley Hospitals NHS Trust,31/12/2019,Mobile Phones,Nursing Director Admin Staff,VODAFONE LTD,32828787,36.00
Department of Health,St. Helens&Knowsley Hospitals NHS Trust,31/12/2019,Mobile Phones,OBS + GYNAE MEDICAL STAFF,VODAFONE LTD,32828787,72.00
Department of Health,St. Helens&Knowsley Hospitals NHS Trust,31/12/2019,Mobile Phones,OCCUPATIONAL HEALTH NURS,VODAFONE LTD,32828787,36.00
Department of Health,St. Helens&Knowsley Hospitals NHS Trust,31/12/2019,Mobile Phones,ORGANISATIONAL L And D,VODAFONE LTD,32828787,9.00
Department of Health,St. Helens&Knowsley Hospitals NHS Trust,31/12/2019,Mobile Phones,ORTHOPAEDIC MEDICAL STAFF,VODAFONE LTD,32828787,45.00
Department of Health,St. Helens&Knowsley Hospitals NHS Trust,31/12/2019,Mobile Phones,OUTPATIENTS ST HELENS,VODAFONE LTD,32828787,36.00
Department of Health,St. Helens&Knowsley Hospitals NHS Trust,31/12/2019,Mobile Phones,PAED SPECIALIST NURSES,VODAFONE LTD,32828787,99.00
Department of Health,St. Helens&Knowsley Hospitals NHS Trust,31/12/2019,Mobile Phones,PAEDIATRIC MEDICAL STAFF,VODAFONE LTD,32828787,9.00
Department of Health,St. Helens&Knowsley Hospitals NHS Trust,31/12/2019,Mobile Phones,PAEDIATRICS WARD CLERKS,VODAFONE LTD,32828787,9.00
Department of Health,St. Helens&Knowsley Hospitals NHS Trust,31/12/2019,Mobile Phones,PALLIATIVE CARE WHISTON,VODAFONE LTD,32828787,108.40
Department of Health,St. Helens&Knowsley Hospitals NHS Trust,31/12/2019,Mobile Phones,PATHOLOGY GENERAL,VODAFONE LTD,32828787,554.05
Department of Health,St. Helens&Knowsley Hospitals NHS Trust,31/12/2019,Mobile Phones,PATIENT ACCESS MGMT,VODAFONE LTD,32828787,108.00
Department of Health,St. Helens&Knowsley Hospitals NHS Trust,31/12/2019,Mobile Phones,PAYING PATIENTS,VODAFONE LTD,32828787,108.00
Department of Health,St. Helens&Knowsley Hospitals NHS Trust,31/12/2019,Mobile Phones,PAYROLL SERVICES,VODAFONE LTD,32828787,259.14
Department of Health,St. Helens&Knowsley Hospitals NHS Trust,31/12/2019,Mobile Phones,PFI DESIGN + CONSTRUCTION,VODAFONE LTD,32828787,168.56
Department of Health,St. Helens&Knowsley Hospitals NHS Trust,31/12/2019,Mobile Phones,PHARMACY GENERAL,VODAFONE LTD,32828787,473.53
Department of Health,St. Helens&Knowsley Hospitals NHS Trust,31/12/2019,Mobile Phones,PROJECTS And TRAINING,VODAFONE LTD,32828787,121.96
Department of Health,St. Helens&Knowsley Hospitals NHS Trust,31/12/2019,Mobile Phones,Patient Safety,VODAFONE LTD,32828787,71.00
Department of Health,St. Helens&Knowsley Hospitals NHS Trust,31/12/2019,Mobile Phones,RADIOGRAPHY WHISTON,VODAFONE LTD,32828787,36.14
Department of Health,St. Helens&Knowsley Hospitals NHS Trust,31/12/2019,Mobile Phones,RADIOLOGY MEDICAL STAFF,VODAFONE LTD,32828787,72.00
Department of Health,St. Helens&Knowsley Hospitals NHS Trust,31/12/2019,Mobile Phones,RD and I,VODAFONE LTD,32828787,117.00
Department of Health,St. Helens&Knowsley Hospitals NHS Trust,31/12/2019,Mobile Phones,REABLEMENT TEAM,VODAFONE LTD,32828787,144.06
Department of Health,St. Helens&Knowsley Hospitals NHS Trust,31/12/2019,Mobile Phones,REGIONAL CANCER TRANSFORMATION,VODAFONE LTD,32828787,183.60
Department of Health,St. Helens&Knowsley Hospitals NHS Trust,31/12/2019,Mobile Phones,RESPIRATORY NURSING,VODAFONE LTD,32828787,144.00
Department of Health,St. Helens&Knowsley Hospitals NHS Trust,31/12/2019,Mobile Phones,RESPIRATORY SNR MEDICAL,VODAFONE LTD,32828787,189.36
Department of Health,St. Helens&Knowsley Hospitals NHS Trust,31/12/2019,Mobile Phones,Resuscitation Training,VODAFONE LTD,32828787,36.00
Department of Health,St. Helens&Knowsley Hospitals NHS Trust,31/12/2019,Mobile Phones,SAFEGUARDING,VODAFONE LTD,32828787,36.00
Department of Health,St. Helens&Knowsley Hospitals NHS Trust,31/12/2019,Mobile Phones,SEPSIS,VODAFONE LTD,32828787,36.00
Department of Health,St. Helens&Knowsley Hospitals NHS Trust,31/12/2019,Mobile Phones,SERV INCR 4 TEACHING-SIFT,VODAFONE LTD,32828787,144.00
Department of Health,St. Helens&Knowsley Hospitals NHS Trust,31/12/2019,Mobile Phones,SEXUAL HEALTH,VODAFONE LTD,32828787,426.04
Department of Health,St. Helens&Knowsley Hospitals NHS Trust,31/12/2019,Mobile Phones,SHARED CARE RECORD - ST HELENS HEALTH ECONOMY,VODAFONE LTD,32828787,"1,148.56"
Department of Health,St. Helens&Knowsley Hospitals NHS Trust,31/12/2019,Mobile Phones,SOHT Phlebotomy,VODAFONE LTD,32828787,108.00
Department of Health,St. Helens&Knowsley Hospitals NHS Trust,31/12/2019,Mobile Phones,ST HELENS REABLEMENT,VODAFONE LTD,32828787,18.00
Department of Health,St. Helens&Knowsley Hospitals NHS Trust,31/12/2019,Mobile Phones,SURGICAL CARE MANAGEMENT,VODAFONE LTD,32828787,484.73
Department of Health,St. Helens&Knowsley Hospitals NHS Trust,31/12/2019,Mobile Phones,SURGICAL CARE SECS,VODAFONE LTD,32828787,36.00
Department of Health,St. Helens&Knowsley Hospitals NHS Trust,31/12/2019,Mobile Phones,Service Delivery Infrastructure,VODAFONE LTD,32828787,108.00
Department of Health,St. Helens&Knowsley Hospitals NHS Trust,31/12/2019,Mobile Phones,Service Delivery Operations,VODAFONE LTD,32828787,36.00
Department of Health,St. Helens&Knowsley Hospitals NHS Trust,31/12/2019,Mobile Phones,THEATRES ANAESTHETICS WH,VODAFONE LTD,32828787,9.00
Department of Health,St. Helens&Knowsley Hospitals NHS Trust,31/12/2019,Mobile Phones,THEATRES BURNS + PLASTICS,VODAFONE LTD,32828787,45.00
Department of Health,St. Helens&Knowsley Hospitals NHS Trust,31/12/2019,Mobile Phones,THEATRES DIRECTORATE MGT,VODAFONE LTD,32828787,217.88
Department of Health,St. Helens&Knowsley Hospitals NHS Trust,31/12/2019,Mobile Phones,THEATRES GEN SURGERY/UROL,VODAFONE LTD,32828787,18.00
Department of Health,St. Helens&Knowsley Hospitals NHS Trust,31/12/2019,Mobile Phones,THEATRES MATERNITY WH,VODAFONE LTD,32828787,18.06
Department of Health,St. Helens&Knowsley Hospitals NHS Trust,31/12/2019,Mobile Phones,THEATRES MEDICAL STAFF,VODAFONE LTD,32828787,36.00
Department of Health,St. Helens&Knowsley Hospitals NHS Trust,31/12/2019,Mobile Phones,THEATRES TRAU ORTHOPAEDIC,VODAFONE LTD,32828787,9.00
Department of Health,St. Helens&Knowsley Hospitals NHS Trust,31/12/2019,Mobile Phones,THERAPY MANAGEMENT & ADMIN.,VODAFONE LTD,32828787,592.32
Department of Health,St. Helens&Knowsley Hospitals NHS Trust,31/12/2019,Mobile Phones,TISSUE VIABILITY,VODAFONE LTD,32828787,9.02
Department of Health,St. Helens&Knowsley Hospitals NHS Trust,31/12/2019,Mobile Phones,Trust Recharges,VODAFONE LTD,32828787,798.00
Department of Health,St. Helens&Knowsley Hospitals NHS Trust,31/12/2019,Mobile Phones,UROLOGY MEDICAL STAFF,VODAFONE LTD,32828787,264.24
Department of Health,St. Helens&Knowsley Hospitals NHS Trust,31/12/2019,Mobile Phones,UROLOGY SUITE,VODAFONE LTD,32828787,81.42
Department of Health,St. Helens&Knowsley Hospitals NHS Trust,31/12/2019,Mobile Phones,WARD 1A FRAILTY,VODAFONE LTD,32828787,117.70
Department of Health,St. Helens&Knowsley Hospitals NHS Trust,31/12/2019,Mobile Phones,WARD 1B ACUTE MEDICAL UNIT,VODAFONE LTD,32828787,72.00
Department of Health,St. Helens&Knowsley Hospitals NHS Trust,31/12/2019,Mobile Phones,WARD 1C ACUTE MEDICAL UNIT,VODAFONE LTD,32828787,72.98
Department of Health,St. Helens&Knowsley Hospitals NHS Trust,31/12/2019,Mobile Phones,WARD 3A PLASTICS,VODAFONE LTD,32828787,148.14
Department of Health,St. Helens&Knowsley Hospitals NHS Trust,31/12/2019,Mobile Phones,WARD 3E GYNAECOLOGY,VODAFONE LTD,32828787,36.00
Department of Health,St. Helens&Knowsley Hospitals NHS Trust,31/12/2019,Mobile Phones,WARD 3F PAEDIATRICS,VODAFONE LTD,32828787,89.77
Department of Health,St. Helens&Knowsley Hospitals NHS Trust,31/12/2019,Mobile Phones,WEST MIDLANDS HEE,VODAFONE LTD,32828787,252.00
Department of Health,St. Helens&Knowsley Hospitals NHS Trust,31/12/2019,Mobile Phones,WHIS THEATRES EMERG WKDAY NGTS WKEND,VODAFONE LTD,32828787,36.00
Department of Health,St. Helens&Knowsley Hospitals NHS Trust,31/12/2019,Mobile Phones,WHISTON EQUIPMENT POOL,VODAFONE LTD,32828787,64.52
Department of Health,St. Helens&Knowsley Hospitals NHS Trust,31/12/2019,Mobile Phones,WORKFORCE INTELLIGENCE,VODAFONE LTD,32828787,108.36
Department of Health,St. Helens&Knowsley Hospitals NHS Trust,31/12/2019,Mobile Phones,Balance Sheet,VODAFONE LTD,32828787,393.86
Department of Health,St. Helens&Knowsley Hospitals NHS Trust,31/12/2019,Various supplies,Various departments,SUPPLY CHAIN COORDINATION LIMITED,32607253,"171,454.01"
Department of Health,St. Helens&Knowsley Hospitals NHS Trust,31/12/2019,Various supplies,Various departments,SUPPLY CHAIN COORDINATION LIMITED,32753165,"176,096.19"
Department of Health,St. Helens&Knowsley Hospitals NHS Trust,31/12/2019,Various supplies,Various departments,SUPPLY CHAIN COORDINATION LIMITED,32753186,"181,741.97"
Department of Health,St. Helens&Knowsley Hospitals NHS Trust,31/12/2019,Various supplies,Various departments,SUPPLY CHAIN COORDINATION LIMITED,32828802,"209,757.91"
Department of Health,St. Helens&Knowsley Hospitals NHS Trust,31/12/2019,Other recvables - Current,Balance Sheet,VODAFONE LTD,32828787,36.00
Department of Health,St. Helens&Knowsley Hospitals NHS Trust,31/12/2019,Rates,RATES/WATER ST HELENS,ST HELENS COUNCIL,32736279,"59,472.00"
Department of Health,St. Helens&Knowsley Hospitals NHS Trust,31/12/2019,Rent,HR Projects,OAKMERE ESTATES (LIVERPOOL) LTD,32753159,"2,535.60"
Department of Health,St. Helens&Knowsley Hospitals NHS Trust,31/12/2019,Rent,NORTH WEST HEE,OAKMERE ESTATES (LIVERPOOL) LTD,32753159,"45,165.60"
Department of Health,St. Helens&Knowsley Hospitals NHS Trust,31/12/2019,Rent,WORKFORCE INTELLIGENCE,OAKMERE ESTATES (LIVERPOOL) LTD,32753159,"6,298.80"
Department of Health,St. Helens&Knowsley Hospitals NHS Trust,31/12/2019,Services Received - NHSTs,PATHOLOGY GENERAL,LIVERPOOL UNIVERSITY HOSPITALS NHS FOUNDATION TRUST,32688351,"33,487.37"
Department of Health,St. Helens&Knowsley Hospitals NHS Trust,31/12/2019,SrvcsRecd-FoundationTrust,A + E MEDICAL STAFF WH,NORTH WEST BOROUGHS HEALTHCARE NHS FOUNDATION TRUST,32629449,"81,495.00"
Department of Health,St. Helens&Knowsley Hospitals NHS Trust,31/12/2019,SrvcsRecd-FoundationTrust,PATHOLOGY GENERAL,LANCASHIRE TEACHING HOSPITALS NHS FOUNDATION TRUST,32641407,"35,640.85"
Department of Health,St. Helens&Knowsley Hospitals NHS Trust,31/12/2019,SrvcsRecd-FoundationTrust,COMMUNITY SLA'S,NORTH WEST BOROUGHS HEALTHCARE NHS FOUNDATION TRUST,32764724,"682,611.00"
Department of Health,St. Helens&Knowsley Hospitals NHS Trust,31/12/2019,SrvcsRecd-FoundationTrust,PATHOLOGY GENERAL,LANCASHIRE TEACHING HOSPITALS NHS FOUNDATION TRUST,32785904,"28,728.52"
Department of Health,St. Helens&Knowsley Hospitals NHS Trust,31/12/2019,SrvcsRecd-FoundationTrust,CARDIOLOGY SNR MEDICAL,LIVERPOOL HEART & CHEST HOSPITAL NHS TRUST,32828797,"28,335.29"
Department of Health,St. Helens&Knowsley Hospitals NHS Trust,31/12/2019,Stocks Raw Materials,Balance Sheet,PHOENIX HEALTHCARE DISTRIBUTION LTD,32583234,"25,097.79"
Department of Health,St. Helens&Knowsley Hospitals NHS Trust,31/12/2019,Stocks Raw Materials,Balance Sheet,ALLIANCE HEALTHCARE DISTRIBUTION LTD,32583235,"113,717.21"
Department of Health,St. Helens&Knowsley Hospitals NHS Trust,31/12/2019,Stocks Raw Materials,Balance Sheet,HEALTHCARE AT HOME LTD,32610681,"63,953.38"
Department of Health,St. Helens&Knowsley Hospitals NHS Trust,31/12/2019,Stocks Raw Materials,Balance Sheet,HEALTHCARE AT HOME LTD,32610682,"79,720.17"
Department of Health,St. Helens&Knowsley Hospitals NHS Trust,31/12/2019,Stocks Raw Materials,Balance Sheet,HEALTHCARE AT HOME LTD,32610683,"84,406.84"
Department of Health,St. Helens&Knowsley Hospitals NHS Trust,31/12/2019,Stocks Raw Materials,Balance Sheet,AAH PHARMACEUTICALS LTD,32644004,"76,501.17"
Department of Health,St. Helens&Knowsley Hospitals NHS Trust,31/12/2019,Stocks Raw Materials,Balance Sheet,PHOENIX HEALTHCARE DISTRIBUTION LTD,32708235,"26,814.73"
Department of Health,St. Helens&Knowsley Hospitals NHS Trust,31/12/2019,Stocks Raw Materials,Balance Sheet,ALLOGA UK LTD,32708236,"47,521.95"
Department of Health,St. Helens&Knowsley Hospitals NHS Trust,31/12/2019,Stocks Raw Materials,Balance Sheet,HEALTHCARE AT HOME LTD,32708238,"38,603.78"
Department of Health,St. Helens&Knowsley Hospitals NHS Trust,31/12/2019,Stocks Raw Materials,Balance Sheet,HEALTHCARE AT HOME LTD,32708239,"45,215.14"
Department of Health,St. Helens&Knowsley Hospitals NHS Trust,31/12/2019,Stocks Raw Materials,Balance Sheet,ALLIANCE HEALTHCARE DISTRIBUTION LTD,32733893,"104,734.24"
Department of Health,St. Helens&Knowsley Hospitals NHS Trust,31/12/2019,Stocks Raw Materials,Balance Sheet,HEALTHCARE AT HOME LTD,32736284,"83,236.57"
Department of Health,St. Helens&Knowsley Hospitals NHS Trust,31/12/2019,Stocks Raw Materials,Balance Sheet,ALLOGA UK LTD,32736285,"79,053.44"
Department of Health,St. Helens&Knowsley Hospitals NHS Trust,31/12/2019,Stocks Raw Materials,Balance Sheet,AAH PHARMACEUTICALS LTD,32754881,"95,618.02"
Department of Health,St. Helens&Knowsley Hospitals NHS Trust,31/12/2019,Stocks Raw Materials,Balance Sheet,AAH PHARMACEUTICALS LTD,32754882,"85,762.89"
Department of Health,St. Helens&Knowsley Hospitals NHS Trust,31/12/2019,Stocks Raw Materials,Balance Sheet,NOVARTIS PHARMACEUTICALS UK LTD,32755284,"27,635.53"
Department of Health,St. Helens&Knowsley Hospitals NHS Trust,31/12/2019,Stocks Raw Materials,Balance Sheet,NOVARTIS PHARMACEUTICALS UK LTD,32850262,"33,078.25"
Department of Health,St. Helens&Knowsley Hospitals NHS Trust,31/12/2019,Water,RATES/WATER WHISTON,WATER PLUS,32655358,"31,302.21"
Department of Health,St. Helens&Knowsley Hospitals NHS Trust,31/12/2019,X-Ray Film & Chemicals,RADIOGRAPHY WHISTON,LIVERPOOL UNIVERSITY HOSPITALS NHS FOUNDATION TRUST,32702590,"25,257.41"
